[Event "15. ročník Dobrovický rapid Tereos TTD a.s."]
[Site "Dobrovice, Czech Republic"]
[Date "2020.02.29"]
[Round "6.12"]
[White "Zemlicka Vit"]
[Black "Szeko Ludovit"]
[Result "0-1"]
[TimeControl "15m + 3s / tah"]
[WhiteElo "1915"]
[BlackElo "2051"]

1. e4 {[%clk 00:15:04]} {[%emt 00:00:02]} Nf6 {[%clk 00:15:05]} {[%emt
00:00:01]} 2. e5 {[%clk 00:15:03]} {[%emt 00:00:03]} Ng8 {[%clk 00:15:08]}
{[%emt 00:00:01]} 3. d4 {[%clk 00:14:38]} {[%emt 00:00:29]} d6 {[%clk
00:15:10]} 4. Nf3 {[%clk 00:14:35]} {[%emt 00:00:06]} Bg4 {[%clk 00:15:11]}
{[%emt 00:00:01]} 5. Be2 {[%clk 00:14:20]} {[%emt 00:00:18]} Nc6 {[%clk
00:15:13]} {[%emt 00:00:01]} 6. O-O {[%clk 00:13:15]} {[%emt 00:01:09]} dxe5
{[%clk 00:15:07]} {[%emt 00:00:09]} 7. dxe5 {[%clk 00:12:26]} {[%emt 00:00:51]}
Qxd1 {[%clk 00:15:01]} {[%emt 00:00:09]} 8. Rxd1 {[%clk 00:12:26]} {[%emt
00:00:03]} e6 {[%clk 00:14:42]} {[%emt 00:00:22]} 9. Bf4 {[%clk 00:11:55]}
{[%emt 00:00:33]} Nge7 {[%clk 00:14:41]} {[%emt 00:00:04]} 10. h3 {[%clk
00:11:42]} {[%emt 00:00:17]} Bh5 {[%clk 00:14:43]} {[%emt 00:00:01]} 11. Nc3
{[%clk 00:11:17]} {[%emt 00:00:28]} Nb4 {[%clk 00:14:26]} {[%emt 00:00:20]} 12.
Nb5 {[%clk 00:10:14]} {[%emt 00:01:06]} Na6 {[%clk 00:13:33]} {[%emt 00:00:56]}
13. c4 {[%clk 00:09:40]} {[%emt 00:00:37]} Nc6 {[%clk 00:13:15]} {[%emt
00:00:22]} 14. a3 {[%clk 00:09:08]} {[%emt 00:00:35]} Be7 {[%clk 00:12:56]}
{[%emt 00:00:22]} 15. b4 {[%clk 00:08:30]} {[%emt 00:00:41]} Rd8 {[%clk
00:12:58]} {[%emt 00:00:02]} 16. Nc3 {[%clk 00:07:38]} {[%emt 00:00:55]} Rxd1+
{[%clk 00:12:41]} {[%emt 00:00:20]} 17. Rxd1 {[%clk 00:07:39]} {[%emt
00:00:01]} Nab8 {[%clk 00:12:15]} {[%emt 00:00:29]} 18. Nb5 {[%clk 00:07:00]}
{[%emt 00:00:41]} Bd8 {[%clk 00:12:11]} {[%emt 00:00:07]} 19. Nfd4 {[%clk
00:05:36]} {[%emt 00:01:25]} Bxe2 {[%clk 00:12:12]} {[%emt 00:00:04]} 20. Nxe2
{[%clk 00:05:38]} {[%emt 00:00:01]} O-O {[%clk 00:11:58]} {[%emt 00:00:16]} 21.
Ned4 {[%clk 00:05:25]} {[%emt 00:00:17]} a6 {[%clk 00:11:50]} {[%emt 00:00:11]}
22. Nxc6 {[%clk 00:05:19]} {[%emt 00:00:09]} Nxc6 {[%clk 00:11:52]} {[%emt
00:00:01]} 23. Nd4 {[%clk 00:05:19]} {[%emt 00:00:03]} Nb8 {[%clk 00:11:19]}
{[%emt 00:00:36]} 24. Nb3 {[%clk 00:05:02]} {[%emt 00:00:20]} Be7 {[%clk
00:11:20]} {[%emt 00:00:02]} 25. Be3 {[%clk 00:04:58]} {[%emt 00:00:07]} f6
{[%clk 00:10:07]} {[%emt 00:01:16]} 26. Bc5 {[%clk 00:04:30]} {[%emt 00:00:31]}
Kf7 {[%clk 00:09:55]} {[%emt 00:00:15]} 27. f4 {[%clk 00:04:29]} {[%emt
00:00:04]} b6 {[%clk 00:09:51]} {[%emt 00:00:07]} 28. Be3 {[%clk 00:03:48]}
{[%emt 00:00:42]} Rd8 {[%clk 00:09:45]} {[%emt 00:00:11]} 29. Rxd8 {[%clk
00:03:45]} {[%emt 00:00:07]} Bxd8 {[%clk 00:09:46]} {[%emt 00:00:01]} 30. Kf2
{[%clk 00:03:34]} {[%emt 00:00:13]} f5 {[%clk 00:09:48]} {[%emt 00:00:01]} 31.
b5 {[%clk 00:03:07]} {[%emt 00:00:29]} Be7 {[%clk 00:09:45]} {[%emt 00:00:07]}
32. a4 {[%clk 00:03:07]} {[%emt 00:00:03]} Ke8 {[%clk 00:09:36]} {[%emt
00:00:12]} 33. g4 {[%clk 00:02:48]} {[%emt 00:00:21]} g6 {[%clk 00:09:38]}
{[%emt 00:00:01]} 34. Ke2 {[%clk 00:02:25]} {[%emt 00:00:26]} axb5 {[%clk
00:09:36]} {[%emt 00:00:04]} 35. axb5 {[%clk 00:02:20]} {[%emt 00:00:08]} Nd7
{[%clk 00:09:31]} {[%emt 00:00:08]} 36. Kd3 {[%clk 00:02:19]} {[%emt 00:00:04]}
Kf7 {[%clk 00:08:15]} {[%emt 00:01:19]} 37. Ke2 {[%clk 00:02:21]} {[%emt
00:00:01]} Bb4 {[%clk 00:07:57]} {[%emt 00:00:21]} 38. Bd2 {[%clk 00:02:15]}
{[%emt 00:00:10]} Be7 {[%clk 00:07:48]} {[%emt 00:00:11]} 39. Be3 {[%clk
00:02:16]} {[%emt 00:00:02]} Bf8 {[%clk 00:07:34]} {[%emt 00:00:17]} 40. Kf3
{[%clk 00:02:14]} {[%emt 00:00:05]} Bg7 {[%clk 00:07:35]} {[%emt 00:00:02]} 41.
g5 {[%clk 00:02:03]} {[%emt 00:00:14]} Bxe5 {[%clk 00:07:34]} {[%emt 00:00:04]}
42. fxe5 {[%clk 00:01:53]} {[%emt 00:00:13]} Nxe5+ {[%clk 00:07:36]} {[%emt
00:00:01]} 43. Ke2 {[%clk 00:01:21]} {[%emt 00:00:36]} Nxc4 {[%clk 00:07:37]}
{[%emt 00:00:01]} 44. Bf4 {[%clk 00:00:43]} {[%emt 00:00:40]} e5 {[%clk
00:07:03]} {[%emt 00:00:37]} 45. Kd3 {[%clk 00:00:39]} {[%emt 00:00:07]} Na3
{[%clk 00:06:59]} {[%emt 00:00:07]} 46. Bxe5 {[%clk 00:00:38]} {[%emt
00:00:04]} Nxb5 {[%clk 00:07:01]} 47. Kc4 {[%clk 00:00:39]} {[%emt 00:00:02]}
Ke6 {[%clk 00:06:28]} {[%emt 00:00:36]} 48. Nd4+ {[%clk 00:00:29]} {[%emt
00:00:13]} Nxd4 {[%clk 00:06:29]} {[%emt 00:00:01]} 49. Bxd4 {[%clk 00:00:26]}
{[%emt 00:00:07]} f4 {[%clk 00:06:30]} {[%emt 00:00:02]} 50. Kd3 {[%clk
00:00:25]} {[%emt 00:00:03]} Kf5 {[%clk 00:06:04]} {[%emt 00:00:30]} 51. Bf6
{[%clk 00:00:23]} {[%emt 00:00:05]} h6 {[%clk 00:05:58]} {[%emt 00:00:09]} 52.
h4 {[%clk 00:00:19]} {[%emt 00:00:07]} hxg5 {[%clk 00:05:59]} {[%emt 00:00:01]}
53. hxg5 {[%clk 00:00:20]} {[%emt 00:00:04]} c6 {[%clk 00:05:38]} {[%emt
00:00:24]} 54. Kd4 {[%clk 00:00:16]} {[%emt 00:00:08]} Kg4 {[%clk 00:05:33]}
{[%emt 00:00:08]} 55. Ke5 {[%clk 00:00:13]} {[%emt 00:00:03]} f3 {[%clk
00:05:31]} {[%emt 00:00:07]} 0-1

[Event "15. ročník Dobrovický rapid Tereos TTD a.s."]
[Site "Dobrovice, Czech Republic"]
[Date "2020.02.29"]
[Round "6.13"]
[White "Divis Jaroslav"]
[Black "Elias Jakub"]
[Result "1-0"]
[TimeControl "15m + 3s / tah"]
[WhiteElo "2029"]
[BlackElo "1602"]

1. e4 {[%clk 00:14:59]} {[%emt 00:00:07]} c5 {[%clk 00:15:05]} {[%emt
00:00:01]} 2. Nf3 {[%clk 00:15:01]} {[%emt 00:00:02]} d6 {[%clk 00:15:06]}
{[%emt 00:00:01]} 3. d4 {[%clk 00:15:02]} {[%emt 00:00:02]} cxd4 {[%clk
00:15:07]} {[%emt 00:00:01]} 4. Nxd4 {[%clk 00:15:03]} {[%emt 00:00:01]} Nf6
{[%clk 00:15:08]} {[%emt 00:00:02]} 5. Nc3 {[%clk 00:15:05]} {[%emt 00:00:01]}
a6 {[%clk 00:15:09]} {[%emt 00:00:02]} 6. Bc4 {[%clk 00:13:45]} {[%emt
00:01:24]} e6 {[%clk 00:15:10]} {[%emt 00:00:03]} 7. Be3 {[%clk 00:13:35]}
{[%emt 00:00:13]} Be7 {[%clk 00:15:10]} {[%emt 00:00:02]} 8. f3 {[%clk
00:13:31]} {[%emt 00:00:08]} O-O {[%clk 00:15:09]} {[%emt 00:00:04]} 9. Qd2
{[%clk 00:13:31]} {[%emt 00:00:03]} b5 {[%clk 00:15:03]} {[%emt 00:00:08]} 10.
Bb3 {[%clk 00:13:24]} {[%emt 00:00:10]} Qc7 {[%clk 00:15:04]} {[%emt 00:00:02]}
11. O-O-O {[%clk 00:13:09]} {[%emt 00:00:18]} Rd8 {[%clk 00:14:41]} {[%emt
00:00:25]} 12. g4 {[%clk 00:12:47]} {[%emt 00:00:26]} Nc6 {[%clk 00:13:41]}
{[%emt 00:01:03]} 13. h4 {[%clk 00:12:36]} {[%emt 00:00:15]} Ne5 {[%clk
00:12:23]} {[%emt 00:01:21]} 14. h5 {[%clk 00:12:00]} {[%emt 00:00:39]} Nc4
{[%clk 00:12:18]} {[%emt 00:00:07]} 15. Bxc4 {[%clk 00:10:36]} {[%emt
00:01:27]} Qxc4 {[%clk 00:12:15]} {[%emt 00:00:06]} 16. b3 {[%clk 00:09:45]}
{[%emt 00:00:54]} Qc7 {[%clk 00:12:09]} {[%emt 00:00:09]} 17. g5 {[%clk
00:09:43]} {[%emt 00:00:05]} Nd7 {[%clk 00:12:04]} {[%emt 00:00:08]} 18. g6
{[%clk 00:09:19]} {[%emt 00:00:28]} Ne5 {[%clk 00:11:10]} {[%emt 00:00:57]} 19.
gxh7+ {[%clk 00:09:10]} {[%emt 00:00:13]} Kxh7 {[%clk 00:11:07]} {[%emt
00:00:06]} 20. Rdg1 {[%clk 00:08:39]} {[%emt 00:00:33]} b4 {[%clk 00:10:46]}
{[%emt 00:00:23]} 21. Na4 {[%clk 00:07:39]} {[%emt 00:01:04]} d5 {[%clk
00:10:38]} {[%emt 00:00:11]} 22. f4 {[%clk 00:07:16]} {[%emt 00:00:26]} Nc6
{[%clk 00:08:46]} {[%emt 00:01:55]} 23. Nxc6 {[%clk 00:06:46]} {[%emt
00:00:33]} Qxc6 {[%clk 00:08:46]} {[%emt 00:00:03]} 24. Bd4 {[%clk 00:06:48]}
{[%emt 00:00:01]} Rg8 {[%clk 00:07:16]} {[%emt 00:01:32]} 25. exd5 {[%clk
00:06:05]} {[%emt 00:00:46]} exd5 {[%clk 00:06:46]} {[%emt 00:00:33]} 26. Qd3+
{[%clk 00:06:04]} {[%emt 00:00:04]} f5 {[%clk 00:06:31]} {[%emt 00:00:19]} 27.
Rg6 {[%clk 00:05:23]} {[%emt 00:00:44]} Qe8 {[%clk 00:05:15]} {[%emt 00:01:19]}
28. Qg3 {[%clk 00:05:02]} {[%emt 00:00:23]} Bf6 {[%clk 00:04:40]} {[%emt
00:00:38]} 29. Bxf6 {[%clk 00:03:18]} {[%emt 00:01:47]} gxf6 {[%clk 00:04:41]}
{[%emt 00:00:01]} 30. Nb6 {[%clk 00:03:06]} {[%emt 00:00:15]} Rb8 {[%clk
00:04:26]} {[%emt 00:00:19]} 31. Nxd5 {[%clk 00:03:07]} {[%emt 00:00:03]} Qf7
{[%clk 00:03:02]} {[%emt 00:01:26]} 32. Rxg8 {[%clk 00:03:00]} {[%emt
00:00:10]} 1-0

[Event "15. ročník Dobrovický rapid Tereos TTD a.s."]
[Site "Dobrovice, Czech Republic"]
[Date "2020.02.29"]
[Round "6.14"]
[White "Jerman Richard"]
[Black "Sala Dalibor"]
[Result "1/2-1/2"]
[TimeControl "15m + 3s / tah"]
[WhiteElo "2046"]
[BlackElo "1930"]

1. e4 {[%clk 00:15:04]} {[%emt 00:00:01]} c5 {[%clk 00:15:04]} {[%emt
00:00:03]} 2. Nc3 {[%clk 00:15:06]} Nc6 {[%clk 00:15:04]} {[%emt 00:00:04]} 3.
Nge2 {[%clk 00:15:09]} Nf6 {[%clk 00:14:54]} {[%emt 00:00:14]} 4. d4 {[%clk
00:15:11]} cxd4 {[%clk 00:14:55]} {[%emt 00:00:03]} 5. Nxd4 {[%clk 00:15:13]}
e5 {[%clk 00:14:55]} {[%emt 00:00:02]} 6. Ndb5 {[%clk 00:15:15]} {[%emt
00:00:01]} d6 {[%clk 00:14:57]} {[%emt 00:00:01]} 7. Nd5 {[%clk 00:15:17]}
{[%emt 00:00:01]} Nxd5 {[%clk 00:14:58]} {[%emt 00:00:02]} 8. exd5 {[%clk
00:15:19]} {[%emt 00:00:01]} Nb8 {[%clk 00:15:00]} 9. c4 {[%clk 00:15:20]}
{[%emt 00:00:03]} Be7 {[%clk 00:15:02]} {[%emt 00:00:01]} 10. Bd3 {[%clk
00:15:15]} {[%emt 00:00:08]} O-O {[%clk 00:14:57]} {[%emt 00:00:08]} 11. O-O
{[%clk 00:15:16]} {[%emt 00:00:02]} a6 {[%clk 00:14:51]} {[%emt 00:00:08]} 12.
Nc3 {[%clk 00:15:18]} f5 {[%clk 00:14:52]} {[%emt 00:00:04]} 13. f3 {[%clk
00:15:03]} {[%emt 00:00:18]} Nd7 {[%clk 00:14:24]} {[%emt 00:00:31]} 14. Be3
{[%clk 00:15:01]} {[%emt 00:00:05]} Bg5 {[%clk 00:13:58]} {[%emt 00:00:28]} 15.
Bf2 {[%clk 00:14:32]} {[%emt 00:00:33]} b6 {[%clk 00:13:46]} {[%emt 00:00:15]}
16. b4 {[%clk 00:14:12]} {[%emt 00:00:23]} Bb7 {[%clk 00:13:39]} {[%emt
00:00:10]} 17. Qc2 {[%clk 00:14:04]} {[%emt 00:00:11]} g6 {[%clk 00:13:32]}
{[%emt 00:00:10]} 18. Rfe1 {[%clk 00:12:57]} {[%emt 00:01:11]} Qe7 {[%clk
00:13:17]} {[%emt 00:00:17]} 19. Na4 {[%clk 00:12:44]} {[%emt 00:00:16]} b5
{[%clk 00:12:33]} {[%emt 00:00:47]} 20. cxb5 {[%clk 00:12:21]} {[%emt
00:00:26]} axb5 {[%clk 00:11:45]} {[%emt 00:00:51]} 21. Bxb5 {[%clk 00:12:20]}
{[%emt 00:00:04]} Bxd5 {[%clk 00:11:23]} {[%emt 00:00:25]} 22. Bxd7 {[%clk
00:12:00]} {[%emt 00:00:23]} Qxd7 {[%clk 00:11:16]} {[%emt 00:00:10]} 23. Nb6
{[%clk 00:12:00]} {[%emt 00:00:03]} Qf7 {[%clk 00:11:05]} {[%emt 00:00:14]} 24.
Nxa8 {[%clk 00:11:23]} {[%emt 00:00:40]} Bxa8 {[%clk 00:11:05]} {[%emt
00:00:02]} 25. Rad1 {[%clk 00:10:19]} {[%emt 00:01:07]} e4 {[%clk 00:09:45]}
{[%emt 00:01:23]} 26. fxe4 {[%clk 00:09:20]} {[%emt 00:01:02]} Bxe4 {[%clk
00:09:20]} {[%emt 00:00:28]} 27. Qb3 {[%clk 00:08:41]} {[%emt 00:00:42]} d5
{[%clk 00:09:17]} {[%emt 00:00:07]} 28. b5 {[%clk 00:08:27]} {[%emt 00:00:17]}
f4 {[%clk 00:08:56]} {[%emt 00:00:24]} 29. b6 {[%clk 00:07:02]} {[%emt
00:01:28]} f3 {[%clk 00:08:47]} {[%emt 00:00:13]} 30. g4 {[%clk 00:04:38]}
{[%emt 00:02:27]} Kg7 {[%clk 00:06:57]} {[%emt 00:01:52]} 31. b7 {[%clk
00:02:59]} {[%emt 00:01:42]} Qf4 {[%clk 00:05:00]} {[%emt 00:02:00]} 32. h3
{[%clk 00:02:39]} {[%emt 00:00:24]} Bh4 {[%clk 00:04:58]} {[%emt 00:00:05]} 33.
Qe3 {[%clk 00:01:30]} {[%emt 00:01:12]} Bxf2+ {[%clk 00:04:31]} {[%emt
00:00:30]} 34. Qxf2 {[%clk 00:01:29]} {[%emt 00:00:03]} Rb8 {[%clk 00:04:12]}
{[%emt 00:00:22]} 35. Qh2 {[%clk 00:00:45]} {[%emt 00:00:48]} Qxh2+ {[%clk
00:03:26]} {[%emt 00:00:49]} 36. Kxh2 {[%clk 00:00:47]} {[%emt 00:00:01]} Rxb7
{[%clk 00:03:24]} {[%emt 00:00:04]} 37. Rd2 {[%clk 00:00:49]} Kf6 {[%clk
00:03:20]} {[%emt 00:00:07]} 38. Kg3 {[%clk 00:00:47]} {[%emt 00:00:04]} Rc7
{[%clk 00:02:48]} {[%emt 00:00:35]} 39. a4 {[%clk 00:00:33]} {[%emt 00:00:17]}
Rc4 {[%clk 00:01:47]} {[%emt 00:01:04]} 40. Ra2 {[%clk 00:00:28]} {[%emt
00:00:08]} Ke5 {[%clk 00:01:34]} {[%emt 00:00:16]} 41. a5 {[%clk 00:00:28]}
{[%emt 00:00:03]} d4 {[%clk 00:01:31]} {[%emt 00:00:07]} 42. a6 {[%clk
00:00:29]} {[%emt 00:00:03]} d3 {[%clk 00:00:19]} {[%emt 00:01:14]} 43. Rxe4+
{[%clk 00:00:18]} {[%emt 00:00:14]} Kxe4 {[%clk 00:00:13]} {[%emt 00:00:09]} 44.
a7 {[%clk 00:00:20]} Rc8 {[%clk 00:00:12]} {[%emt 00:00:05]} 45. a8=Q+ {[%clk
00:00:19]} {[%emt 00:00:03]} Rxa8 {[%clk 00:00:14]} {[%emt 00:00:01]} 46. Rxa8
{[%clk 00:00:21]} {[%emt 00:00:01]} d2 {[%clk 00:00:09]} {[%emt 00:00:08]} 47.
Rd8 {[%clk 00:00:21]} {[%emt 00:00:03]} Ke3 {[%clk 00:00:10]} {[%emt 00:00:02]}
48. Re8+ {[%clk 00:00:11]} {[%emt 00:00:13]} Kd3 {[%clk 00:00:11]} {[%emt
00:00:03]} 49. Rd8+ {[%clk 00:00:13]} {[%emt 00:00:01]} Ke2 {[%clk 00:00:12]}
{[%emt 00:00:01]} 50. Rxd2+ {[%clk 00:00:15]} {[%emt 00:00:02]} Kxd2 {[%clk
00:00:14]} {[%emt 00:00:01]} 51. Kxf3 {[%clk 00:00:17]} {[%emt 00:00:01]} Kd3
{[%clk 00:00:08]} {[%emt 00:00:09]} 52. Kf4 {[%clk 00:00:19]} Kd4 {[%clk
00:00:11]} {[%emt 00:00:01]} 53. Kg5 {[%clk 00:00:19]} {[%emt 00:00:03]} Ke5
{[%clk 00:00:09]} {[%emt 00:00:04]} 54. Kh6 {[%clk 00:00:20]} {[%emt 00:00:02]}
Kf6 {[%clk 00:00:09]} {[%emt 00:00:03]} 55. Kxh7 {[%clk 00:00:22]} {[%emt
00:00:02]} Kf7 {[%clk 00:00:07]} {[%emt 00:00:06]} 56. Kh6 {[%clk 00:00:24]}
Kf6 {[%clk 00:00:09]} 57. h4 {[%clk 00:00:26]} {[%emt 00:00:02]} Kf7 {[%clk
00:00:10]} {[%emt 00:00:02]} 58. Kg5 {[%clk 00:00:28]} Kg7 {[%clk 00:00:12]} 59.
h5 {[%clk 00:00:27]} {[%emt 00:00:03]} gxh5 {[%clk 00:00:14]} {[%emt 00:00:01]}
60. gxh5 {[%clk 00:00:30]} {[%emt 00:00:01]} Kh7 {[%emt 00:00:03]} 1/2-1/2

[ePGN "0.1;DGT LiveChess/2.2.5"]

[Event "15. ročník Dobrovický rapid Tereos TTD a.s."]
[Site "Dobrovice, Czech Republic"]
[Date "2020.02.29"]
[Round "7.1"]
[White "Sorm Daniel"]
[Black "Kourousis Epaminondas"]
[Result "0-1"]
[TimeControl "15m + 3s / tah"]
[WhiteElo "2310"]
[BlackElo "2406"]

1. d4 {[%clk 00:15:06]} {[%emt 00:10:14]} Nf6 {[%clk 00:15:02]} 2. c4 {[%clk
00:15:06]} e6 {[%clk 00:15:02]} {[%emt 00:00:05]} 3. Nc3 {[%clk 00:15:07]} Bb4
{[%clk 00:15:04]} {[%emt 00:00:03]} 4. e3 {[%clk 00:15:09]} O-O {[%clk
00:15:04]} 5. Bd3 {[%clk 00:15:09]} c5 {[%clk 00:14:44]} {[%emt 00:00:30]} 6.
Nge2 {[%clk 00:15:10]} cxd4 {[%clk 00:14:45]} {[%emt 00:00:05]} 7. exd4 {[%emt
00:00:07]} d5 8. cxd5 {[%clk 00:15:10]} Nxd5 {[%clk 00:14:47]} {[%emt
00:00:02]} 9. O-O {[%clk 00:15:10]} {[%emt 00:00:04]} Re8 {[%clk 00:14:31]}
{[%emt 00:00:19]} 10. Bc2 {[%clk 00:14:58]} {[%emt 00:00:14]} Bf8 {[%clk
00:14:04]} {[%emt 00:00:30]} 11. Qd3 {[%clk 00:14:49]} {[%emt 00:00:12]} g6
{[%clk 00:14:02]} {[%emt 00:00:05]} 12. Bb3 {[%clk 00:14:36]} {[%emt 00:00:16]}
Nxc3 {[%clk 00:12:59]} {[%emt 00:01:07]} 13. Nxc3 {[%clk 00:12:53]} {[%emt
00:01:44]} Nc6 {[%clk 00:12:57]} {[%emt 00:00:06]} 14. Rd1 {[%clk 00:12:47]}
{[%emt 00:00:09]} Bg7 {[%clk 00:12:31]} {[%emt 00:00:28]} 15. d5 {[%clk
00:11:16]} {[%emt 00:01:35]} Nb4 {[%clk 00:11:30]} {[%emt 00:01:03]} 16. Qf3
{[%clk 00:10:19]} {[%emt 00:01:00]} Nxd5 {[%clk 00:11:21]} {[%emt 00:00:12]} 17.
Nxd5 {[%clk 00:09:24]} {[%emt 00:00:58]} exd5 {[%clk 00:11:22]} {[%emt
00:00:02]} 18. Bxd5 {[%clk 00:09:11]} {[%emt 00:00:16]} Qf6 {[%clk 00:09:58]}
{[%emt 00:01:27]} 19. Bxb7 {[%clk 00:07:59]} {[%emt 00:01:14]} Qe7 {[%clk
00:07:29]} {[%emt 00:02:31]} 20. Be4 {[%clk 00:05:16]} {[%emt 00:02:47]} Qf6
{[%emt 00:01:40]} 21. Bb7 {[%emt 00:01:20]} Qe7 {[%emt 00:00:15]} 22. Be4
{[%emt 00:00:01]} Qf6 23. Bd5 0-1